Cogmind - Beta 14 @@@ ROGUE MODE // 2025.04.24 @ 23:04:54 Player: Willster Result: Self-destructed Performance ------------- Evolutions (1) 500 Regions Visited (3) 600 Robots Destroyed (15) 75 Value Destroyed (332) 332 Prototype IDs (1) 20 Alien Tech Used (0) 0 Bonus (0) 0 TOTAL SCORE: 1527 Bonus ------- None Cogmind --------- Core Integrity 358/400 Matter 270/300 Energy 11/100 System Corruption 0% Temperature Cool (0) Movement Treading (160) Location -9/Materials Parts ------- > --- POWER (1) -------- (None) > --- PROPULSION (2) --- Improved Treads > --- UTILITY (4) ------ Improved Heat Sink Improved Terrain Scanner Decoy Drone Bay (0/16) > --- WEAPON (2) ------- Small Laser Beam Cannon > --- INVENTORY (5) ---- Improved Treads Compact Wheel Terrain Scanner ECM Suite Peak State ------------ > --- POWER ------------ (None) > --- PROPULSION ------- Improved Treads > --- UTILITY ---------- Improved Heat Sink Improved Terrain Scanner Decoy Drone Bay > --- WEAPON ----------- Small Laser Beam Cannon > --- INVENTORY -------- Improved Treads Compact Wheel Terrain Scanner ECM Suite [Rating: 24] Favorites ----------- Power Ion Engine Engine Ion Engine Propulsion Compact Wheel Treads Improved Treads Leg Aluminum Leg Wheel Compact Wheel Utility Small Storage Unit Device Improved Terrain Scanner Storage Small Storage Unit Processor Visual Processing Unit Weapon Medium Laser Energy Gun Medium Laser Energy Cannon Beam Cannon Build | -11 -10 -10 -9 ------- Run | Yrd Mat Min Mat Slots Evolved 2 | . . . 2 Power . | . . . . Propulsion . | . . . . Utility 2 | . . . 2 Weapon . | . . . . Parts Attached 24 | 6 7 8 3 Power 2 | 1 . 1 . Engine 2 | 1 . 1 . Core . | . . . . Reactor . | . . . . Propulsion 7 | 2 1 3 1 Treads 1 | . . . 1 Leg 2 | . . 2 . Wheel 4 | 2 1 1 . Hover . | . . . . Flight . | . . . . Utility 6 | 1 1 2 2 Device 3 | . . 1 2 Storage 1 | 1 . . . Processor 2 | . 1 1 . Hackware . | . . . . Protection . | . . . . Artifact . | . . . . Weapon 9 | 2 5 2 . Energy Gun 7 | 2 4 1 . Energy Cannon 2 | . 1 1 . Ballistic Gun . | . . . . Ballistic Cannon . | . . . . Launcher . | . . . . Special Weapon . | . . . . Impact Weapon . | . . . . Slashing Weapon . | . . . . Piercing Weapon . | . . . . Special Melee Weapon . | . . . . Unidentified Prototypes 1 | . . . 1 Parts Lost 10 | . 3 7 . Power 2 | . . 2 . Propulsion 2 | . . 2 . Utility 1 | . . 1 . Weapon 5 | . 3 2 . Highest Loss Streak 4 | . 2 4 . To Critical Strikes . | . . . . Average Slot Usage (%) 86 | . 94 84 66 Engine 8 | . 14 6 . Leg 8 | . . 15 . Wheel 14 | . 25 6 9 Device 6 | . . 6 33 Storage 9 | . 14 7 . Processor 11 | . 12 12 . Energy Gun 22 | . 26 21 11 Energy Cannon 4 | . 1 6 11 Peak Build Rating 24 | 6 8 10 24 Average Rating 9 | 3 7 9 23 On Entrance 5 | . 6 7 7 Naked Turns . | . . . . Heaviest Build 20 | 14 15 14 20 Greatest Support 26 | 26 26 20 23 Greatest Overweight (x) 1 | . 1 . 1 Average Overweight (x) . | . . . . Largest Inventory Capacity 8 | 8 8 8 5 Average Capacity 6 | 6 8 6 5 Most Carried 8 | 5 8 8 4 Average Carried 5 | 3 5 5 1 Final Capacity 8 | 8 8 5 5 Final Carried 8 | 3 8 4 4 Class Distribution -------------------- 100% | Mutant Dominant Class ---------------- Mutant | -10/Materials Mutant | -10/Mines Mutant | -9/Materials Resources | -11 -10 -10 -9 ----------- Run | Yrd Mat Min Mat Matter Collected 434 | 251 59 124 . Remotely . | . . . . Salvage Created 653 | . 480 173 . Parts 25 | . 25 . . Haulers Intercepted . | . . . . Recyclers Shooed . | . . . . Parts Field Recycled . | . . . . Retrieved Matter . | . . . . Parts Self-Destructed . | . . . . Prevented . | . . . . Kills | -11 -10 -10 -9 ------- Run | Yrd Mat Min Mat Combat Hostiles Destroyed 20 | . 8 12 . Guns 11 | . 6 5 . Cannons 7 | . . 7 . AOE 2 | . 2 . . Classes Destroyed 5 | . 4 1 . Builder 2 | . 2 . . Watcher 2 | . 2 . . Swarmer 5 | . 2 3 . Grunt 6 | . 6 . . Assembled 9 | . . 9 . Best Kill Streak 4 | . 3 4 . Combat Bots Only 4 | . 3 4 . Max Kills in Single Turn 2 | . 2 1 . Gunslinging . | . . . . Exploded 1 | . 1 . . Melee . | . . . . Uniques/NPCs Destroyed . | . . . . Combat | -11 -10 -10 -9 -------- Run | Yrd Mat Min Mat Hostile Shots Fired 118 | . 31 71 16 Missed 34 | . 10 21 3 Damage Taken 1137 | . 290 621 226 Core 170 | . 54 74 42 Absorbed by Shields . | . . . . Regen/Repaired (Parts) 41 | . 41 . . Core Remaining (%) 74 | 100 . 48 . Volleys Fired 80 | . 34 38 8 Largest 2 | . 2 2 2 Hottest 110 | . 110 100 100 Shots Fired 152 | . 64 74 14 Gun 122 | . 63 53 6 Cannon 30 | . 1 21 8 Launcher . | . . . . Special . | . . . . Kinetic . | . . . . Thermal 98 | . 10 74 14 Explosive . | . . . . Electromagnetic 54 | . 54 . . Robot Hit Streak 7 | . 7 6 2 Robot Miss Streak 3 | . 3 3 1 Penetration Max . | . . . . Secondary Targets 1 | . . 1 . Max Gunslinging Chain 1 | . . 1 . Shots Hit Robots 83 | . 36 40 7 Core Hits 38 | . 18 19 1 Critical Kills . | . . . . Critical Parts Destroyed . | . . . . Critical Strikes 4 | . 2 2 . Burn 2 | . . 2 . Corrupt 2 | . 2 . . Melee Attacks . | . . . . Impact . | . . . . Slashing . | . . . . Piercing . | . . . . Sneak Attacks . | . . . . Combat Hostiles . | . . . . Follow-up Attacks . | . . . . Damage Inflicted 1288 | . 654 530 104 Guns 837 | . 469 335 33 Cannons 266 | . . 195 71 Explosions 173 | . 173 . . Melee . | . . . . Ramming 12 | . 12 . . Kinetic . | . . . . Thermal 856 | . 222 530 104 Explosive . | . . . . Electromagnetic 420 | . 420 . . Impact . | . . . . Slashing . | . . . . Piercing . | . . . . Highest Corruption 4 | . . 4 . Average Corruption 3 | . . 3 . Corruption Purged . | . . . . Corruption Blocked . | . . . . Effects 6 | . . 6 . Message Errors 1 | . . 1 . Matter Fused 3 | . . 3 . Data Loss (minor) 2 | . . 2 . Overload Shots . | . . . . Overflow Damage 17 | . . 17 . Projectiles 17 | . . 17 . Explosions . | . . . . Melee . | . . . . Knockbacks . | . . . . Impact . | . . . . Kinetic . | . . . . Secondary . | . . . . Self-Inflicted Damage 43 | . 43 . . Shots 1 | . 1 . . Rammed 1 | . 1 . . Targets Rammed 2 | . 1 1 . Kicked 1 | . . 1 . Crushed . | . . . . Highest Temperature 328 | . 166 328 18 Average Temperature 88 | . 67 106 18 Received Heat Transfer 265 | . 126 40 99 Effects 2 | . . 2 . Energy Bleed 1 | . . 1 . Matter Decay 1 | . . 1 . Siege Activations . | . . . . Robots Corrupted . | . . . . Combat Hostiles . | . . . . Parts Fried 3 | . 3 . . Impact Corruptions . | . . . . Robots Melted . | . . . . Combat Hostiles . | . . . . Parts Melted 4 | . 1 3 . Heat Transferred 2093 | . 398 1472 223 Parts Sabotaged . | . . . . Parts Stolen . | . . . . Parts Stripped . | . . . . Power Chain Reactions 2 | . 2 . . Alert | -11 -10 -10 -9 ------- Run | Yrd Mat Min Mat Peak Influence 279 | . 279 105 16 Initial 30 | . . 30 1 Average 90 | . 169 56 4 Maximum Alert Level 1 | . 1 . . Low Security (%) 83 | 100 55 100 100 Level 1 16 | . 44 . . Level 2 . | . . . . Level 3 . | . . . . Level 4 . | . . . . Level 5 . | . . . . High Security . | . . . . Max Security . | . . . . Squads Dispatched 4 | . 2 . 2 Investigation 2 | . 1 . 1 Extermination . | . . . . Reinforcement 2 | . 1 . 1 Assault . | . . . . Garrison . | . . . . Intercept . | . . . . Searches Triggered . | . . . . Construction Impeded . | . . . . Haulers Reinforced . | . . . . Active Scanning Responses . | . . . . Cargo Convoy Interrupts . | . . . . Stealth | -11 -10 -10 -9 --------- Run | Yrd Mat Min Mat Distress Signals 5 | . 2 . 3 Communications Jammed . | . . . . Distress Signals . | . . . . Times Spotted 50 | . 14 18 18 Peak Tracking Total 8 | . 4 8 6 Tactical Retreats 6 | . 2 4 . Traps | -11 -10 -10 -9 ------- Run | Yrd Mat Min Mat Traps Triggered . | . . . . Indirectly . | . . . . Trap Hack Attempts . | . . . . Triggered . | . . . . Disarmed . | . . . . Reprogrammed . | . . . . Reused . | . . . . Traps Extracted . | . . . . Installed . | . . . . Triggered . | . . . . Machines | -11 -10 -10 -9 ---------- Run | Yrd Mat Min Mat Machines Disabled 1 | . 1 . . Max in Single Turn 1 | . 1 . . Machines Repaired . | . . . . Machines Dismantled . | . . . . Machines Sabotaged . | . . . . Overloaded Fab Kills . | . . . . Hacking | -11 -10 -10 -9 --------- Run | Yrd Mat Min Mat Machines Accessed 3 | . 1 1 1 Terminals 1 | . . . 1 Fabricators . | . . . . Repair Stations 1 | . 1 . . Recycling Units . | . . . . Scanalyzers . | . . . . Garrison Access . | . . . . Total Hacks 12 | . 7 1 4 Successful 9 | . 5 1 3 Failed 3 | . 2 . 1 Catastrophic . | . . . . Database Lockouts . | . . . . Manual . | . . . . Terminals 4 | . . . 4 Fabricators . | . . . . Repair Stations 7 | . 7 . . Recycling Units . | . . . . Scanalyzers . | . . . . Garrison Access . | . . . . Terminal Hacks 4 | . . 1 3 Record 1 | . . . 1 Open Door 1 | . . 1 . Alert Level 1 | . . . 1 Locate Traps 1 | . . . 1 Fabricator Hacks . | . . . . Repair Station Hacks 5 | . 5 . . Scan Component 3 | . 3 . . Repair 2 | . 2 . . Recycling Unit Hacks . | . . . . Scanalyzer . | . . . . Garrison Access Hacks . | . . . . Unauthorized Hacks . | . . . . Terminals . | . . . . Fabricators . | . . . . Repair Stations . | . . . . Recycling Units . | . . . . Scanalyzers . | . . . . Garrison Access . | . . . . Data Cores Recovered . | . . . . Used . | . . . . Hacking Detections 2 | . 1 . 1 Full Trace Events 2 | . 1 . 1 Feedback Events . | . . . . Feedback Blocked . | . . . . Robot Schematics Acquired . | . . . . Robots Built . | . . . . Authchips . | . . . . Time . | . . . . Total Robot Build Rating . | . . . . Part Schematics Acquired . | . . . . Parts Built . | . . . . Authchips . | . . . . Time . | . . . . Total Part Build Rating . | . . . . Parts Repaired 2 | . 2 . . Time 62 | . 62 . . Parts Recycled . | . . . . Recycled Matter . | . . . . Retrieved Matter . | . . . . Retrieved Components . | . . . . Parts Scanalyzed . | . . . . Part Schematics Acquired . | . . . . Parts Damaged . | . . . . Bothacking | -11 -10 -10 -9 ------------ Run | Yrd Mat Min Mat Used RIF Installer . | . . . . Robots Hacked . | . . . . Non-combat . | . . . . Combat . | . . . . Robot Hacks Applied . | . . . . Relay Couplers Released . | . . . . Fabnet Peak Effective % . | . . . . Robots Rewired . | . . . . Allies Hacked . | . . . . Hacks Repelled . | . . . . Allies | -11 -10 -10 -9 -------- Run | Yrd Mat Min Mat Total Allies . | . . . . Largest Group . | . . . . Highest-Rated Group . | . . . . Highest-Rated Ally . | . . . . Total Orders . | . . . . Ally Attacks . | . . . . Total Damage . | . . . . Kills . | . . . . Allies Corrupted . | . . . . Allies Melted . | . . . . Intel | -11 -10 -10 -9 ------- Run | Yrd Mat Min Mat Robot Analysis Total . | . . . . Derelict Logs Recovered 1 | . . 1 . Drone Launches 16 | . . . 16 Drone Recoveries . | . . . . Exploration | -11 -10 -10 -9 ------------- Run | Yrd Mat Min Mat Turns Passed 1146 | 46 414 595 91 Spaces Moved 793 | 40 289 413 51 Core 12 | 12 . . . Treads 7 | . . . 7 Legs 172 | . . 172 . Wheels 602 | 28 289 241 44 Hover . | . . . . Flight . | . . . . Fastest Speed 50 | 50 90 100 115 Average Speed 101 | 77 91 108 121 Slowest Speed 160 | 90 100 120 160 Overloaded Moves . | . . . . Propulsion Burnouts . | . . . . Robots Hopped . | . . . . Cave-ins Triggered . | . . . . Exploration Rate (%) 40 | 4 37 78 42 Regions Visited 3 Branch Regions 1 Pre-discovered Areas . | . . . . Known Exits Taken . | . . . . Unknown Exits Taken 3 | 1 1 1 . Scrap Searched 1 | . . 1 . Spaces Dug . | . . . . Terrain Destroyed 8 | . 8 . . Melee . | . . . . Projectile . | . . . . AOE 8 | . 8 . . Terrain Rammed . | . . . . Walls Destroyed . | . . . . Machines Disabled . | . . . . Actions | -11 -10 -10 -9 --------- Run | Yrd Mat Min Mat Total 979 | 54 374 486 65 Wait 48 | . 27 21 . Move 790 | 39 288 412 51 Hop . | . . . . Pick Up 28 | 9 13 3 3 Fast Attach 3 | . 1 2 . Attach 17 | 6 4 5 2 Detach . | . . . . Swap 4 | . 2 1 1 Drop 7 | . 4 3 . Fire 80 | . 34 38 8 Melee . | . . . . Ram 1 | . 1 . . Kick 1 | . . 1 . Crush . | . . . . Escape Stasis . | . . . . Rewire . | . . . . Trap . | . . . . Miscellaneous . | . . . . Route ------- -11/Scrapyard -10/Materials -10/Mines -9/Materials (discovered 3 exits: *Mat x2 / [*Min]) History --------- Turn | Location | Event 8 | -11/Scrapyard | Discovered new exit (range 16) 47 | -11/Scrapyard | Entered Materials 123 | -10/Materials | Discovered new exit (range 8) 303 | -10/Materials | Build established: Mutant 408 | -10/Materials | Repaired Com. Wheel 445 | -10/Materials | Repaired Broken Wheel? 461 | -10/Materials | Entered Mines 482 | -10/Mines | Found the Drone Emporium 503 | -10/Mines | Found Prototype Device 659 | -10/Mines | Learned 4 Materials zone layouts 734 | -10/Mines | Assembled infested the area 805 | -10/Mines | Lost 4 parts (1p1n2w) 864 | -10/Mines | Discovered new exit (range 13) 884 | -10/Mines | Core integrity fell below 50% 1056 | -10/Mines | Entered Materials 1056 | -9/Materials | Evolved 2 slots: Utility x2 1056 | -9/Materials | Identified Decoy Drone Bay 1057 | -9/Materials | Identified exit to Materials 1079 | -9/Materials | Discovered new exit (range 44) 1129 | -9/Materials | Discovered exit to Materials (range 78) 1147 | -9/Materials | Self-destructed Last Messages --------------- 01130_ O-16 Technician locks terminal. 01130_ Acquired Imp. Treads. 01131_ Decoy Drone self-destructs. 01131_ Decoy Drone destroyed. 01132_ Decoy Drone self-destructs. 01132_ Decoy Drone destroyed. 01132_ K-01 Serf collects debris. 01133_ Decoy Drone self-destructs. 01133_ Decoy Drone destroyed. 01133_ W-16 Scout sends out distress signal. 01134_ Decoy Drone self-destructs. 01134_ Decoy Drone destroyed. 01135_ Decoy Drone self-destructs. 01135_ Decoy Drone destroyed. 01135_ K-01 Serf collects debris. 01136_ Decoy Drone self-destructs. 01136_ Decoy Drone destroyed. 01137_ Decoy Drone self-destructs. 01137_ Decoy Drone destroyed. 01141_ Critical hit (Burn: +37). Map ----- +----------------------------------------------------+ | """ ?####% ##??????????????????????# #????????? | | """ ?#" #???????????????###????# #????????? | | ######"" % #???????????????# ] ??# #????????? | | ?????#!! #???????????????# # #????????? | | ?????#"" < #???????????????# """ + #????????? | | ?????#|| #???????????????# R" # # "T" | | ?????#"" #???????????????# ""? # # | | ?????#" #???????????????# ??? # # """ """ | | ?????#### ##?????????????????????## # """ """ | | ????????#% #???????????????????????# # """ """ | | #???????# #???????????????????????# # | | #???????# #???????????????????????# ########## | | #???????# #????????????????####??## ########## | | #???????#% #?????????????#?? ?? # | | #??###+## #???????????????? """ ? # | | ???# +??????????????# """ # | | ???# #???????????#??# """ # ########## | | ???# +??????????????# # #????????? | | ???# ###??????????????? """ / #????????? | | ???# #????????????????# """ # #????????? | | ?? + %#?????????????????? """ # #????????? | | ???# #?#????#?????????? # #????????? | | ??## #???????????############### ########## | | ??# #############w ## # # | | ??# g r ! ## // # # | | ??# ***Y@ + / + # """ | | ??# **%*! ## / # # """ | | ??# ###+###########*= ## # + "" """ | | ??######?? ?????????# #### # # "T | | ??????????""" ??"?????# #??#####+## # "" | | ??????????""" ????????# #?????????# #????????? | | ??????????""" "?"?????# #?????????# #????????? | | ????????? ?????## #????????? ????????? | | ????????? ??#???# #???? ???? ???????? | | ?????????? ? ??#???# #????????? ???????? | | ??????????????? ??#???# #????????? ??????? | | ???????????#??????????# #????????? ??????? | | ?????????????#????????# % #??? ????? ?????? | | ?????????????????????## #????????? ? ?????? | | ??????????????????????# #????#???? ""?????????? | | ??????????????????????# #??????#?? ????????????? | | ??????????????????????# #????#?#???????????????? | | ??????????????????????# #????#?????????????????? | | ???????????????? ??#??# #??????????????????????? | | ??????????????????????# #??????#???????????????? | | ??????????????????????# #???????#??????????#???? | | ??????????????#??????## ##?????#???????????????? | | ???????????? ####### ###############???????? | | ????????? ^ #???????? | | ????????? ^ T #???????? | +----------------------------------------------------+ Best States ------------- Heat Dissipation 42 Energy Generation 10 Energy Capacity 250 Matter Stores 300 Matter Capacity 300 Sight Range 18 Terrain Scan Range 16 Terrain Scan Density 85 Evasion (%) 55 Recoil Reduction 1 Item Schematics ----------------- None Robot Schematics ------------------ None Fabricated ------------ Nothing Alien Tech Used ----------------- None Achievements -------------- Release The Drones! Challenges ------------ None Game ------ Seed MicroVariableTorch Manual? 0 Play Time 00:20:40 Cumulative 13.4 hours Start 2025.04.24 @ 22:45:33 End 2025.04.24 @ 23:04:54 Sessions 1 Manual Loads 0 Difficulty Rogue Special Mode None Game No. 19 Rogue 19 Adventurer 0 Explorer 0 Win Type - Total 0 Types 0/0/0/0/0/0/0/0/0 Lore% 10 Gallery% 16 Achievement% 15 Wizard Run 0 Options --------- Layout 0 ASCII 0 Keyboard 0 Movement Mouse Keybinds 0 Fullscreen 2 Font 18/X11 Map View 76x50 Zoom Use 0% Tactical HUD 1 Map Filters NONE Filters NONE Steam 1 RUN: 230c42fa-e434-4c48-a5b1-08a789f518ca